[Event "Titled Tuesday Blitz June 28 Early 2022"]
[White "Le, Quang Liem"]
[Black "Bekturov, Tamerlan"]
[WhiteFideId "12401137"]
[BlackFideId "13710184"]
[WhiteElo "2657"]
[BlackElo "2151"]
[Result "1-0"]
[Round "03"]
[TimeControl "180+1"]
[Date "2022.06.28"]
[WhiteClock "0:00:42"]
[BlackClock "0:00:07"]

1. Nf3 {[%clk 0:03:00]}  d5 {[%clk 0:02:17]} 2. g3 {[%clk 0:03:01]}  Nd7 {[%clk 0:02:14]} 3. d4 {[%clk 0:02:59]}  Ngf6 {[%clk 0:02:14]} 4. Bg2 {[%clk 0:03:00]}  Nb6 {[%clk 0:02:14]} 5. O-O {[%clk 0:02:59]}  Bf5 {[%clk 0:02:15]} 6. Nbd2 {[%clk 0:02:52]}  h6 {[%clk 0:02:11]} 7. c4 {[%clk 0:02:51]}  dxc4 {[%clk 0:02:12]} 8. Nxc4 {[%clk 0:02:45]}  Nxc4 {[%clk 0:02:13]} 9. Qa4+ {[%clk 0:02:45]}  c6 {[%clk 0:02:13]} 10. Qxc4 {[%clk 0:02:46]}  Be4 {[%clk 0:02:13]} 11. Ne5 {[%clk 0:02:28]}  Bd5 {[%clk 0:01:40]} 12. Qd3 {[%clk 0:02:27]}  Bxg2 {[%clk 0:01:40]} 13. Kxg2 {[%clk 0:02:28]}  e6 {[%clk 0:01:36]} 14. e4 {[%clk 0:02:23]}  Be7 {[%clk 0:01:31]} 15. Rd1 {[%clk 0:02:23]}  O-O {[%clk 0:01:31]} 16. Be3 {[%clk 0:02:21]}  Qa5 {[%clk 0:01:21]} 17. f3 {[%clk 0:02:14]}  Rfd8 {[%clk 0:01:19]} 18. Qb3 {[%clk 0:02:14]}  Qb6 {[%clk 0:01:12]} 19. Nc4 {[%clk 0:02:01]}  Qa6 {[%clk 0:01:07]} 20. Rac1 {[%clk 0:02:01]}  Rac8 {[%clk 0:01:05]} 21. Bf2 {[%clk 0:01:55]}  Nd7 {[%clk 0:01:03]} 22. a3 {[%clk 0:01:54]}  Nb6 {[%clk 0:01:03]} 23. Ne5 {[%clk 0:01:54]}  Qa4 {[%clk 0:00:58]} 24. Qa2 {[%clk 0:01:40]}  Nd7 {[%clk 0:00:58]} 25. Nd3 {[%clk 0:01:33]}  Qb5 {[%clk 0:00:45]} 26. a4 {[%clk 0:01:31]}  Qa6 {[%clk 0:00:44]} 27. b3 {[%clk 0:01:31]}  Bf8 {[%clk 0:00:44]} 28. Qc2 {[%clk 0:01:28]}  Re8 {[%clk 0:00:42]} 29. Nc5 {[%clk 0:01:26]}  Nxc5 {[%clk 0:00:42]} 30. dxc5 {[%clk 0:01:27]}  Red8 {[%clk 0:00:42]} 31. b4 {[%clk 0:01:27]}  b6 {[%clk 0:00:21]} 32. Rxd8 {[%clk 0:01:07]}  Rxd8 {[%clk 0:00:22]} 33. cxb6 {[%clk 0:01:08]}  axb6 {[%clk 0:00:20]} 34. Qxc6 {[%clk 0:01:09]}  Rd2 {[%clk 0:00:16]} 35. a5 {[%clk 0:01:04]}  Qe2 {[%clk 0:00:15]} 36. Qxb6 {[%clk 0:01:04]}  Bxb4 {[%clk 0:00:14]} 37. a6 {[%clk 0:01:01]}  Ra2 {[%clk 0:00:14]} 38. a7 {[%clk 0:00:58]}  Kh7 {[%clk 0:00:13]} 39. Rf1 {[%clk 0:00:53]}  Bd2 {[%clk 0:00:08]} 40. Qb8 {[%clk 0:00:47]}  Qa6 {[%clk 0:00:08]} 41. Kg1 {[%clk 0:00:43]}  Bb4 {[%clk 0:00:07]} 42. Qxb4 {[%clk 0:00:42]} 1-0


[Site "https://www.chess.com"]

[Event "Titled Tuesday Blitz June 28 Early 2022"]
[White "Lou, Yiping"]
[Black "Sanchez, Robert"]
[WhiteFideId "8603928"]
[BlackFideId "2034360"]
[WhiteElo "2412"]
[BlackElo "2046"]
[Result "0-1"]
[Round "03"]
[TimeControl "180+1"]
[Date "2022.06.28"]
[WhiteClock "0:00:30"]
[BlackClock "0:00:25"]

1. e4 {[%clk 0:03:00]}  e6 {[%clk 0:03:00]} 2. Qe2 {[%clk 0:02:55]}  c5 {[%clk 0:03:00]} 3. g3 {[%clk 0:02:49]}  Nc6 {[%clk 0:03:00]} 4. Nf3 {[%clk 0:02:49]}  d6 {[%clk 0:03:00]} 5. Bg2 {[%clk 0:02:49]}  g6 {[%clk 0:03:01]} 6. O-O {[%clk 0:02:49]}  Bg7 {[%clk 0:03:02]} 7. c3 {[%clk 0:02:50]}  e5 {[%clk 0:03:02]} 8. Rd1 {[%clk 0:02:48]}  Nge7 {[%clk 0:02:59]} 9. Na3 {[%clk 0:02:48]}  O-O {[%clk 0:02:58]} 10. Nc4 {[%clk 0:02:47]}  h6 {[%clk 0:02:58]} 11. d3 {[%clk 0:02:47]}  f5 {[%clk 0:02:58]} 12. a4 {[%clk 0:02:46]}  f4 {[%clk 0:02:55]} 13. d4 {[%clk 0:02:42]}  exd4 {[%clk 0:02:47]} 14. Bxf4 {[%clk 0:02:36]}  d5 {[%clk 0:02:36]} 15. Nce5 {[%clk 0:02:23]}  g5 {[%clk 0:02:19]} 16. Nxc6 {[%clk 0:02:14]}  bxc6 {[%clk 0:02:11]} 17. Bd2 {[%clk 0:02:04]}  dxe4 {[%clk 0:02:00]} 18. Qxe4 {[%clk 0:02:00]}  Bf5 {[%clk 0:02:00]} 19. Qe2 {[%clk 0:01:59]}  Nd5 {[%clk 0:01:56]} 20. cxd4 {[%clk 0:01:54]}  cxd4 {[%clk 0:01:51]} 21. Qc4 {[%clk 0:01:54]}  Bg4 {[%clk 0:01:34]} 22. Nxd4 {[%clk 0:01:48]}  Bxd4 {[%clk 0:01:29]} 23. Qxd4 {[%clk 0:01:47]}  Bxd1 {[%clk 0:01:29]} 24. Rxd1 {[%clk 0:01:46]}  Qf6 {[%clk 0:01:24]} 25. Qc5 {[%clk 0:01:40]}  Rad8 {[%clk 0:01:19]} 26. b4 {[%clk 0:01:33]}  Nc3 {[%clk 0:00:52]} 27. Qc4+ {[%clk 0:00:58]}  Rf7 {[%clk 0:00:51]} 28. Qxc3 {[%clk 0:00:44]}  Qxc3 {[%clk 0:00:49]} 29. Bxc3 {[%clk 0:00:44]}  Rxd1+ {[%clk 0:00:50]} 30. Bf1 {[%clk 0:00:44]}  Rf3 {[%clk 0:00:43]} 31. Be5 {[%clk 0:00:39]}  Rb3 {[%clk 0:00:40]} 32. Kg2 {[%clk 0:00:35]}  Rxb4 {[%clk 0:00:40]} 33. Bc3 {[%clk 0:00:34]}  Rxa4 {[%clk 0:00:38]} 34. Be2 {[%clk 0:00:33]}  Rc1 {[%clk 0:00:35]} 35. Bf6 {[%clk 0:00:32]}  Kf7 {[%clk 0:00:32]} 36. Bd8 {[%clk 0:00:31]}  Ra2 {[%clk 0:00:26]} 37. Bh5+ {[%clk 0:00:30]}  Kg7 {[%clk 0:00:25]} 0-1


[Site "https://www.chess.com"]

[Event "Titled Tuesday Blitz June 28 Early 2022"]
[White "Madaminov, Mukhiddin"]
[Black "Nakamura, Hikaru"]
[WhiteFideId "14210703"]
[BlackFideId "2016192"]
[WhiteElo "2771"]
[BlackElo "3159"]
[Result "1/2-1/2"]
[Round "03"]
[TimeControl "180+1"]
[Date "2022.06.28"]
[WhiteClock "0:00:04"]
[BlackClock "0:00:04"]

1. d4 {[%clk 0:03:00]}  g6 {[%clk 0:02:59]} 2. e4 {[%clk 0:03:00]}  Bg7 {[%clk 0:03:00]} 3. Nc3 {[%clk 0:03:01]}  a6 {[%clk 0:03:00]} 4. a4 {[%clk 0:02:59]}  b6 {[%clk 0:03:00]} 5. Nf3 {[%clk 0:02:57]}  Bb7 {[%clk 0:03:00]} 6. Bc4 {[%clk 0:02:56]}  e6 {[%clk 0:03:01]} 7. O-O {[%clk 0:02:56]}  d6 {[%clk 0:03:01]} 8. Qe2 {[%clk 0:02:56]}  Ne7 {[%clk 0:03:00]} 9. h3 {[%clk 0:02:55]}  h6 {[%clk 0:02:58]} 10. Bf4 {[%clk 0:02:46]}  g5 {[%clk 0:02:58]} 11. Bg3 {[%clk 0:02:45]}  Ng6 {[%clk 0:02:56]} 12. d5 {[%clk 0:02:40]}  Qe7 {[%clk 0:02:54]} 13. e5 {[%clk 0:02:30]}  exd5 {[%clk 0:02:27]} 14. Nxd5 {[%clk 0:02:23]}  Bxd5 {[%clk 0:02:26]} 15. Bxd5 {[%clk 0:02:24]}  c6 {[%clk 0:02:27]} 16. Be4 {[%clk 0:02:25]}  Nxe5 {[%clk 0:02:25]} 17. Nd4 {[%clk 0:02:11]}  O-O {[%clk 0:02:25]} 18. Nf5 {[%clk 0:02:04]}  Qe6 {[%clk 0:02:25]} 19. Rad1 {[%clk 0:01:53]}  Qc4 {[%clk 0:01:45]} 20. Qxc4 {[%clk 0:01:42]}  Nxc4 {[%clk 0:01:45]} 21. b3 {[%clk 0:01:42]}  d5 {[%clk 0:01:41]} 22. bxc4 {[%clk 0:01:25]}  dxe4 {[%clk 0:01:41]} 23. Rd6 {[%clk 0:01:26]}  b5 {[%clk 0:01:38]} 24. a5 {[%clk 0:01:26]}  Ra7 {[%clk 0:01:28]} 25. Rfd1 {[%clk 0:01:21]}  c5 {[%clk 0:01:23]} 26. cxb5 {[%clk 0:01:03]}  axb5 {[%clk 0:01:23]} 27. Rb6 {[%clk 0:01:03]}  Na6 {[%clk 0:01:03]} 28. Rxb5 {[%clk 0:01:03]}  Rfa8 {[%clk 0:01:02]} 29. Rd5 {[%clk 0:00:36]}  Bf8 {[%clk 0:01:01]} 30. c3 {[%clk 0:00:31]}  Nc7 {[%clk 0:00:52]} 31. Bxc7 {[%clk 0:00:32]}  Rxc7 {[%clk 0:00:53]} 32. Re5 {[%clk 0:00:29]}  Rca7 {[%clk 0:00:43]} 33. Rxe4 {[%clk 0:00:29]}  Rxa5 {[%clk 0:00:43]} 34. Rxa5 {[%clk 0:00:30]}  Rxa5 {[%clk 0:00:43]} 35. Re8 {[%clk 0:00:29]}  Ra6 {[%clk 0:00:43]} 36. g4 {[%clk 0:00:27]}  c4 {[%clk 0:00:37]} 37. Rc8 {[%clk 0:00:26]}  Re6 {[%clk 0:00:31]} 38. Kg2 {[%clk 0:00:27]}  Ra6 {[%clk 0:00:29]} 39. Kf3 {[%clk 0:00:27]}  Re6 {[%clk 0:00:30]} 40. Kg2 {[%clk 0:00:25]}  Ra6 {[%clk 0:00:30]} 41. Rxc4 {[%clk 0:00:24]}  Bg7 {[%clk 0:00:29]} 42. Rc8+ {[%clk 0:00:22]}  Kh7 {[%clk 0:00:30]} 43. Rc7 {[%clk 0:00:23]}  Kg8 {[%clk 0:00:28]} 44. Ne7+ {[%clk 0:00:22]}  Kh7 {[%clk 0:00:27]} 45. Nd5 {[%clk 0:00:23]}  Kg8 {[%clk 0:00:25]} 46. Ne3 {[%clk 0:00:21]}  Ra3 {[%clk 0:00:22]} 47. c4 {[%clk 0:00:20]}  Be5 {[%clk 0:00:21]} 48. Rc8+ {[%clk 0:00:20]}  Kh7 {[%clk 0:00:21]} 49. Nf5 {[%clk 0:00:21]}  Rc3 {[%clk 0:00:21]} 50. Rc6 {[%clk 0:00:21]}  f6 {[%clk 0:00:21]} 51. c5 {[%clk 0:00:20]}  Kg6 {[%clk 0:00:19]} 52. Rc8 {[%clk 0:00:20]}  h5 {[%clk 0:00:19]} 53. Ne7+ {[%clk 0:00:14]}  Kf7 {[%clk 0:00:18]} 54. Nd5 {[%clk 0:00:15]}  Rd3 {[%clk 0:00:19]} 55. Ne3 {[%clk 0:00:11]}  hxg4 {[%clk 0:00:19]} 56. hxg4 {[%clk 0:00:12]}  Rc3 {[%clk 0:00:19]} 57. Nf5 {[%clk 0:00:13]}  Ke6 {[%clk 0:00:18]} 58. c6 {[%clk 0:00:13]}  Kd5 {[%clk 0:00:19]} 59. Ne3+ {[%clk 0:00:11]}  Ke4 {[%clk 0:00:18]} 60. c7 {[%clk 0:00:06]}  Bxc7 {[%clk 0:00:14]} 61. Nf5 {[%clk 0:00:06]}  Kd5 {[%clk 0:00:13]} 62. Re8 {[%clk 0:00:05]}  Be5 {[%clk 0:00:13]} 63. Ne7+ {[%clk 0:00:03]}  Ke6 {[%clk 0:00:14]} 64. Nf5+ {[%clk 0:00:03]}  Kd5 {[%clk 0:00:14]} 65. Re7 {[%clk 0:00:04]}  Ke4 {[%clk 0:00:13]} 66. Re8 {[%clk 0:00:03]}  Kf4 {[%clk 0:00:13]} 67. Ne3 {[%clk 0:00:04]}  Ra3 {[%clk 0:00:13]} 68. Re7 {[%clk 0:00:04]}  Ra2 {[%clk 0:00:13]} 69. Re8 {[%clk 0:00:04]}  Bd4 {[%clk 0:00:11]} 70. Nd5+ {[%clk 0:00:04]}  Kxg4 {[%clk 0:00:11]} 71. Re4+ {[%clk 0:00:05]}  Kf5 {[%clk 0:00:12]} 72. Rxd4 {[%clk 0:00:06]}  Ke5 {[%clk 0:00:13]} 73. Rd1 {[%clk 0:00:06]}  f5 {[%clk 0:00:13]} 74. Ne3 {[%clk 0:00:07]}  f4 {[%clk 0:00:11]} 75. Ng4+ {[%clk 0:00:06]}  Kf5 {[%clk 0:00:12]} 76. Nh6+ {[%clk 0:00:05]}  Kg6 {[%clk 0:00:10]} 77. Rd6+ {[%clk 0:00:06]}  Kh5 {[%clk 0:00:10]} 78. Nf7 {[%clk 0:00:06]}  Kg4 {[%clk 0:00:08]} 79. Nh6+ {[%clk 0:00:05]}  Kh5 {[%clk 0:00:08]} 80. Kf3 {[%clk 0:00:04]}  Ra3+ {[%clk 0:00:04]} 81. Kg2 {[%clk 0:00:04]}  Ra2 {[%clk 0:00:04]} 1/2-1/2


[Site "https://www.chess.com"]

[Event "Titled Tuesday Blitz June 28 Early 2022"]
[White "Mangialardo, Tiago Carvalho"]
[Black "Petrova, Irina"]
[WhiteFideId "2130718"]
[BlackFideId "14124122"]
[WhiteElo "2067"]
[BlackElo "1993"]
[Result "0-1"]
[Round "03"]
[TimeControl "180+1"]
[Date "2022.06.28"]
[WhiteClock "0:00:02"]
[BlackClock "0:00:23"]

1. e4 {[%clk 0:03:00]}  d6 {[%clk 0:03:00]} 2. d4 {[%clk 0:03:00]}  Nf6 {[%clk 0:03:00]} 3. Nc3 {[%clk 0:02:59]}  e5 {[%clk 0:03:00]} 4. Nf3 {[%clk 0:02:58]}  Nbd7 {[%clk 0:02:58]} 5. dxe5 {[%clk 0:02:57]}  dxe5 {[%clk 0:02:58]} 6. Bg5 {[%clk 0:02:55]}  Be7 {[%clk 0:02:55]} 7. Bc4 {[%clk 0:02:45]}  O-O {[%clk 0:02:55]} 8. O-O {[%clk 0:02:45]}  c6 {[%clk 0:02:55]} 9. Re1 {[%clk 0:02:39]}  h6 {[%clk 0:02:52]} 10. Bh4 {[%clk 0:02:38]}  Qc7 {[%clk 0:02:48]} 11. Bg3 {[%clk 0:02:37]}  Re8 {[%clk 0:02:46]} 12. a4 {[%clk 0:02:36]}  Bb4 {[%clk 0:02:45]} 13. Qd3 {[%clk 0:02:31]}  Nc5 {[%clk 0:02:41]} 14. Qe3 {[%clk 0:01:43]}  Bg4 {[%clk 0:02:24]} 15. Nd2 {[%clk 0:01:34]}  Rad8 {[%clk 0:02:17]} 16. f3 {[%clk 0:01:30]}  Bc8 {[%clk 0:02:04]} 17. Bf2 {[%clk 0:01:21]}  Ne6 {[%clk 0:01:55]} 18. Nb3 {[%clk 0:01:12]}  Nd4 {[%clk 0:01:48]} 19. Rac1 {[%clk 0:00:54]}  a6 {[%clk 0:01:12]} 20. Red1 {[%clk 0:00:53]}  b5 {[%clk 0:01:09]} 21. axb5 {[%clk 0:00:48]}  axb5 {[%clk 0:01:10]} 22. Bf1 {[%clk 0:00:47]}  Nxb3 {[%clk 0:01:01]} 23. cxb3 {[%clk 0:00:45]}  Qb7 {[%clk 0:00:53]} 24. Na2 {[%clk 0:00:43]}  Bf8 {[%clk 0:00:49]} 25. Bh4 {[%clk 0:00:24]}  Rxd1 {[%clk 0:00:44]} 26. Rxd1 {[%clk 0:00:23]}  Nd7 {[%clk 0:00:45]} 27. Kh1 {[%clk 0:00:19]}  Bc5 {[%clk 0:00:42]} 28. Qc3 {[%clk 0:00:19]}  Ba7 {[%clk 0:00:38]} 29. Rc1 {[%clk 0:00:18]}  Qb6 {[%clk 0:00:37]} 30. Be2 {[%clk 0:00:15]}  Bb7 {[%clk 0:00:33]} 31. b4 {[%clk 0:00:15]}  Nf8 {[%clk 0:00:32]} 32. Qc2 {[%clk 0:00:15]}  Ne6 {[%clk 0:00:32]} 33. Rf1 {[%clk 0:00:09]}  Nd4 {[%clk 0:00:31]} 34. Qd1 {[%clk 0:00:06]}  Ne6 {[%clk 0:00:30]} 35. Bf2 {[%clk 0:00:06]}  Qa6 {[%clk 0:00:30]} 36. Bxa7 {[%clk 0:00:05]}  Qxa7 {[%clk 0:00:31]} 37. Qb3 {[%clk 0:00:04]}  Nd4 {[%clk 0:00:30]} 38. Qe3 {[%clk 0:00:01]}  Qxa2 {[%clk 0:00:30]} 39. Bd3 {[%clk 0:00:01]}  Qe6 {[%clk 0:00:29]} 40. Rc1 {[%clk 0:00:02]}  Bc8 {[%clk 0:00:28]} 41. Rc5 {[%clk 0:00:02]}  Qd6 {[%clk 0:00:27]} 42. f4 {[%clk 0:00:02]}  exf4 {[%clk 0:00:26]} 43. Qf2 {[%clk 0:00:02]}  Ne6 {[%clk 0:00:25]} 44. Bc2 {[%clk 0:00:02]}  Nxc5 {[%clk 0:00:24]} 45. bxc5 {[%clk 0:00:02]}  Qe5 {[%clk 0:00:24]} 46. Bb3 {[%clk 0:00:02]}  Be6 {[%clk 0:00:24]} 47. Bc2 {[%clk 0:00:02]}  Bc4 {[%clk 0:00:23]} 0-1


[Site "https://www.chess.com"]

[Event "Titled Tuesday Blitz June 28 Early 2022"]
[White "Marjanovic, Annamaria"]
[Black "Kuzmin, Roman"]
[WhiteFideId "750930"]
[BlackFideId "44134932"]
[WhiteElo "2156"]
[BlackElo "1968"]
[Result "1-0"]
[Round "03"]
[TimeControl "180+1"]
[Date "2022.06.28"]
[WhiteClock "0:00:23"]
[BlackClock "0:00:03"]

1. b3 {[%clk 0:03:00]}  d5 {[%clk 0:02:59]} 2. Bb2 {[%clk 0:03:00]}  Nf6 {[%clk 0:02:59]} 3. g3 {[%clk 0:03:00]}  b6 {[%clk 0:02:58]} 4. Bg2 {[%clk 0:03:00]}  Bb7 {[%clk 0:02:59]} 5. e3 {[%clk 0:02:58]}  e6 {[%clk 0:02:59]} 6. Ne2 {[%clk 0:02:58]}  Be7 {[%clk 0:02:59]} 7. d4 {[%clk 0:02:58]}  O-O {[%clk 0:02:59]} 8. O-O {[%clk 0:02:59]}  c5 {[%clk 0:03:00]} 9. Nd2 {[%clk 0:02:57]}  Nc6 {[%clk 0:02:55]} 10. dxc5 {[%clk 0:02:50]}  Bxc5 {[%clk 0:02:54]} 11. c4 {[%clk 0:02:48]}  dxc4 {[%clk 0:02:46]} 12. Nxc4 {[%clk 0:02:47]}  Qe7 {[%clk 0:02:46]} 13. Nf4 {[%clk 0:02:32]}  Rfd8 {[%clk 0:02:44]} 14. Qe2 {[%clk 0:02:32]}  Rac8 {[%clk 0:02:31]} 15. Nd3 {[%clk 0:02:24]}  Bd6 {[%clk 0:00:58]} 16. Nxd6 {[%clk 0:02:20]}  Qxd6 {[%clk 0:00:59]} 17. Bxf6 {[%clk 0:02:17]}  gxf6 {[%clk 0:00:58]} 18. Nf4 {[%clk 0:02:14]}  f5 {[%clk 0:00:54]} 19. Rfd1 {[%clk 0:02:02]}  Qe5 {[%clk 0:00:53]} 20. Rxd8+ {[%clk 0:01:55]}  Nxd8 {[%clk 0:00:47]} 21. Rd1 {[%clk 0:01:49]}  Bxg2 {[%clk 0:00:44]} 22. Nxg2 {[%clk 0:01:45]}  Nc6 {[%clk 0:00:43]} 23. Nf4 {[%clk 0:01:39]}  Rd8 {[%clk 0:00:30]} 24. Rxd8+ {[%clk 0:01:37]}  Nxd8 {[%clk 0:00:31]} 25. Qa6 {[%clk 0:01:27]}  Qc7 {[%clk 0:00:26]} 26. Qd3 {[%clk 0:01:23]}  Nc6 {[%clk 0:00:19]} 27. Qc4 {[%clk 0:01:20]}  Qd6 {[%clk 0:00:18]} 28. Nh5 {[%clk 0:01:15]}  h6 {[%clk 0:00:12]} 29. Nf6+ {[%clk 0:01:06]}  Kh8 {[%clk 0:00:10]} 30. Qh4 {[%clk 0:01:04]}  Qd1+ {[%clk 0:00:07]} 31. Kg2 {[%clk 0:01:04]}  Kg7 {[%clk 0:00:07]} 32. Nh5+ {[%clk 0:00:56]}  Kg6 {[%clk 0:00:05]} 33. Nf4+ {[%clk 0:00:54]}  Kg7 {[%clk 0:00:05]} 34. Nh5+ {[%clk 0:00:43]}  Kg6 {[%clk 0:00:05]} 35. Qf6+ {[%clk 0:00:28]}  Kxh5 {[%clk 0:00:05]} 36. Qxf7+ {[%clk 0:00:28]}  Kg5 {[%clk 0:00:02]} 37. f4+ {[%clk 0:00:23]}  Kg4 {[%clk 0:00:03]} 38. h3# {[%clk 0:00:23]} 1-0


[Site "https://www.chess.com"]

[Event "Titled Tuesday Blitz June 28 Early 2022"]
[White "Mekhane, Adam"]
[Black "Ianov, Viktor"]
[WhiteFideId "36050601"]
[BlackFideId "14102730"]
[WhiteElo "2002"]
[BlackElo "2152"]
[Result "1-0"]
[Round "03"]
[TimeControl "180+1"]
[Date "2022.06.28"]
[WhiteClock "0:00:45"]
[BlackClock "0:01:00"]

1. e4 {[%clk 0:02:59]}  d6 {[%clk 0:02:59]} 2. d4 {[%clk 0:02:55]}  Nf6 {[%clk 0:02:58]} 3. Nc3 {[%clk 0:02:53]}  c6 {[%clk 0:02:58]} 4. f3 {[%clk 0:02:49]}  Qb6 {[%clk 0:02:57]} 5. b3 {[%clk 0:02:47]}  e6 {[%clk 0:02:56]} 6. Bb2 {[%clk 0:02:47]}  d5 {[%clk 0:02:56]} 7. e5 {[%clk 0:02:47]}  Nfd7 {[%clk 0:02:55]} 8. f4 {[%clk 0:02:42]}  c5 {[%clk 0:02:55]} 9. Nf3 {[%clk 0:02:43]}  Nc6 {[%clk 0:02:55]} 10. Bd3 {[%clk 0:02:28]}  cxd4 {[%clk 0:02:50]} 11. Ne2 {[%clk 0:02:18]}  Bb4+ {[%clk 0:02:49]} 12. Kf2 {[%clk 0:02:18]}  Bc5 {[%clk 0:02:48]} 13. a3 {[%clk 0:02:16]}  a5 {[%clk 0:02:48]} 14. Rf1 {[%clk 0:02:15]}  O-O {[%clk 0:02:41]} 15. Kg1 {[%clk 0:02:15]}  f5 {[%clk 0:02:41]} 16. Kh1 {[%clk 0:02:09]}  Re8 {[%clk 0:02:27]} 17. Qe1 {[%clk 0:02:08]}  Nf8 {[%clk 0:02:26]} 18. Rg1 {[%clk 0:02:02]}  Bd7 {[%clk 0:02:26]} 19. g4 {[%clk 0:02:00]}  g6 {[%clk 0:02:21]} 20. Qh4 {[%clk 0:01:55]}  Rac8 {[%clk 0:02:12]} 21. Rg3 {[%clk 0:01:53]}  Be7 {[%clk 0:02:09]} 22. Qh3 {[%clk 0:01:51]}  a4 {[%clk 0:02:01]} 23. b4 {[%clk 0:01:48]}  Qd8 {[%clk 0:01:53]} 24. gxf5 {[%clk 0:01:42]}  exf5 {[%clk 0:01:52]} 25. Bxf5 {[%clk 0:01:42]}  Bxf5 {[%clk 0:01:47]} 26. Qxf5 {[%clk 0:01:43]}  Qd7 {[%clk 0:01:45]} 27. Qxd7 {[%clk 0:01:36]}  Nxd7 {[%clk 0:01:44]} 28. Nexd4 {[%clk 0:01:35]}  Nxd4 {[%clk 0:01:41]} 29. Nxd4 {[%clk 0:01:34]}  Nf8 {[%clk 0:01:38]} 30. f5 {[%clk 0:01:31]}  Bd8 {[%clk 0:01:37]} 31. e6 {[%clk 0:01:26]}  Bb6 {[%clk 0:01:32]} 32. Re1 {[%clk 0:01:07]}  Rc4 {[%clk 0:01:25]} 33. f6 {[%clk 0:01:00]}  Nxe6 {[%clk 0:01:04]} 34. Nxe6 {[%clk 0:00:52]}  Rxc2 {[%clk 0:01:03]} 35. f7+ {[%clk 0:00:47]}  Kxf7 {[%clk 0:01:02]} 36. Ng5+ {[%clk 0:00:47]}  Kf8 {[%clk 0:01:00]} 37. Rf3+ {[%clk 0:00:45]} 1-0


[Site "https://www.chess.com"]

[Event "Titled Tuesday Blitz June 28 Early 2022"]
[White "Nasir, Zehn"]
[Black "Garcia, Gabriel Gonzaga"]
[WhiteFideId "2613239"]
[BlackFideId "2138956"]
[WhiteElo "1993"]
[BlackElo "2240"]
[Result "0-1"]
[Round "03"]
[TimeControl "180+1"]
[Date "2022.06.28"]
[WhiteClock "0:00:09"]
[BlackClock "0:00:22"]

1. e4 {[%clk 0:03:00]}  c6 {[%clk 0:03:00]} 2. d4 {[%clk 0:03:00]}  d5 {[%clk 0:03:01]} 3. e5 {[%clk 0:03:01]}  Bf5 {[%clk 0:03:01]} 4. h4 {[%clk 0:03:02]}  h5 {[%clk 0:03:00]} 5. Bd3 {[%clk 0:03:02]}  Bxd3 {[%clk 0:03:00]} 6. Qxd3 {[%clk 0:03:03]}  e6 {[%clk 0:03:01]} 7. Bg5 {[%clk 0:02:59]}  Be7 {[%clk 0:03:01]} 8. Nf3 {[%clk 0:02:59]}  Nd7 {[%clk 0:03:01]} 9. Nbd2 {[%clk 0:02:58]}  Nh6 {[%clk 0:03:02]} 10. Nf1 {[%clk 0:02:56]}  Nf5 {[%clk 0:03:02]} 11. Ng3 {[%clk 0:02:55]}  Nxg3 {[%clk 0:03:01]} 12. fxg3 {[%clk 0:02:56]}  Qb6 {[%clk 0:02:57]} 13. Bxe7 {[%clk 0:02:54]}  Kxe7 {[%clk 0:02:58]} 14. O-O {[%clk 0:02:54]}  Raf8 {[%clk 0:02:55]} 15. c4 {[%clk 0:02:36]}  dxc4 {[%clk 0:02:32]} 16. Qxc4 {[%clk 0:02:36]}  Qb5 {[%clk 0:02:25]} 17. Qc2 {[%clk 0:02:17]}  Qd5 {[%clk 0:02:20]} 18. b4 {[%clk 0:02:11]}  f6 {[%clk 0:02:16]} 19. exf6+ {[%clk 0:02:06]}  Rxf6 {[%clk 0:02:17]} 20. Rfe1 {[%clk 0:01:57]}  Rhf8 {[%clk 0:02:10]} 21. Re3 {[%clk 0:01:47]}  Kd8 {[%clk 0:01:50]} 22. Rae1 {[%clk 0:01:42]}  Kc7 {[%clk 0:01:48]} 23. a4 {[%clk 0:01:39]}  a6 {[%clk 0:01:48]} 24. Kh2 {[%clk 0:01:31]}  Kb8 {[%clk 0:01:42]} 25. Ng5 {[%clk 0:01:29]}  Rf2 {[%clk 0:01:33]} 26. Qe4 {[%clk 0:01:24]}  Nf6 {[%clk 0:01:29]} 27. Qxd5 {[%clk 0:01:21]}  exd5 {[%clk 0:01:26]} 28. Re7 {[%clk 0:01:07]}  Ng4+ {[%clk 0:01:26]} 29. Kg1 {[%clk 0:01:03]}  Rb2 {[%clk 0:01:17]} 30. Ne6 {[%clk 0:00:43]}  Rff2 {[%clk 0:01:15]} 31. Nf4 {[%clk 0:00:37]}  g5 {[%clk 0:01:12]} 32. hxg5 {[%clk 0:00:36]}  h4 {[%clk 0:01:13]} 33. R7e2 {[%clk 0:00:23]}  hxg3 {[%clk 0:01:13]} 34. Rxb2 {[%clk 0:00:17]}  Rxb2 {[%clk 0:01:14]} 35. g6 {[%clk 0:00:17]}  Rf2 {[%clk 0:01:01]} 36. g7 {[%clk 0:00:16]}  Nh6 {[%clk 0:00:47]} 37. Re8+ {[%clk 0:00:14]}  Ka7 {[%clk 0:00:45]} 38. g8=Q {[%clk 0:00:14]}  Nxg8 {[%clk 0:00:44]} 39. Rxg8 {[%clk 0:00:15]}  Rxf4 {[%clk 0:00:45]} 40. Rxg3 {[%clk 0:00:14]}  Rxd4 {[%clk 0:00:46]} 41. Rb3 {[%clk 0:00:14]}  a5 {[%clk 0:00:45]} 42. bxa5 {[%clk 0:00:12]}  Rxa4 {[%clk 0:00:46]} 43. Kf2 {[%clk 0:00:12]}  Rxa5 {[%clk 0:00:45]} 44. g4 {[%clk 0:00:12]}  d4 {[%clk 0:00:45]} 45. Kf3 {[%clk 0:00:09]}  Rd5 {[%clk 0:00:45]} 46. Ke4 {[%clk 0:00:08]}  b5 {[%clk 0:00:39]} 47. Rg3 {[%clk 0:00:08]}  Kb6 {[%clk 0:00:28]} 48. g5 {[%clk 0:00:08]}  d3 {[%clk 0:00:26]} 49. g6 {[%clk 0:00:08]}  d2 {[%clk 0:00:23]} 50. g7 {[%clk 0:00:08]}  Rd8 {[%clk 0:00:23]} 51. Rg1 {[%clk 0:00:07]}  Rg8 {[%clk 0:00:23]} 52. Rd1 {[%clk 0:00:05]}  Rxg7 {[%clk 0:00:22]} 53. Rxd2 {[%clk 0:00:06]}  Re7+ {[%clk 0:00:23]} 54. Kf3 {[%clk 0:00:06]}  c5 {[%clk 0:00:23]} 55. Rd5 {[%clk 0:00:06]}  b4 {[%clk 0:00:22]} 56. Rd6+ {[%clk 0:00:06]}  Kb5 {[%clk 0:00:23]} 57. Rd8 {[%clk 0:00:07]}  c4 {[%clk 0:00:22]} 58. Rb8+ {[%clk 0:00:07]}  Ka4 {[%clk 0:00:23]} 59. Rc8 {[%clk 0:00:08]}  c3 {[%clk 0:00:22]} 60. Rc7 {[%clk 0:00:09]}  Rxc7 {[%clk 0:00:22]} 0-1


[Site "https://www.chess.com"]